fUST/lending_fUST_20251203
["ID","MTS","AMOUNT","RATE_DAILY","PERIOD"]
[396170938,1764771101884,-500.0,0.00012328,2]
[396170939,1764771101906,-500.0,0.00012328,2]
[396170940,1764771101929,-500.0,0.00012328,2]
[396170941,1764771101954,-500.0,0.00012328,2]
[396170942,1764771101976,-500.0,0.00012328,2]
[396170943,1764771101998,-500.0,0.00012328,2]
[396170944,1764771102019,-500.0,0.00012328,2]
[396170945,1764771102040,-500.0,0.00012328,2]
[396170946,1764771102062,-500.0,0.00012328,2]
[396170947,1764771102084,-462.89867396,0.00012328,2]
[396170948,1764771102108,-500.0,0.00012328,2]
[396170949,1764771102132,-500.0,0.00012328,2]
[396170950,1764771102153,-500.0,0.00012328,2]
[396170951,1764771102174,-500.0,0.00012328,2]
[396170952,1764771102195,-500.0,0.00012328,2]
[396170953,1764771102221,-500.0,0.00012328,2]
[396170954,1764771102243,-500.0,0.00012328,2]
[396170955,1764771102265,-500.0,0.00012328,2]
[396170956,1764771102286,-500.0,0.00012328,2]
[396170957,1764771102308,-500.0,0.00012328,2]
[396170958,1764771102328,-500.0,0.00012328,2]
[396170959,1764771102349,-543.93366432,0.00012328,2]
[396170960,1764771102373,-500.0,0.00012328,2]
[396170961,1764771102394,-500.0,0.00012328,2]
[396170962,1764771102415,-500.0,0.00012328,2]
[396170963,1764771102437,-500.0,0.00012328,2]
[396170964,1764771102458,-500.0,0.00012328,2]
[396170965,1764771102480,-500.0,0.00012328,2]
[396170966,1764771102502,-500.0,0.00012328,2]
[396170967,1764771102523,-500.0,0.00012328,2]
[396170968,1764771102544,-500.0,0.00012328,2]
[396170969,1764771102566,-500.0,0.00012328,2]
[396170970,1764771102588,-500.0,0.00012328,2]
[396170971,1764771102611,-500.0,0.00012328,2]
[396170972,1764771102638,-500.0,0.00012328,2]
[396170973,1764771102660,-500.0,0.00012328,2]
[396170974,1764771102682,-500.0,0.00012328,2]
[396170975,1764771102705,-594.18502148,0.00012328,2]
[396170976,1764771102727,-500.0,0.00012328,2]
[396170977,1764771102748,-500.0,0.00012328,2]
[396170978,1764771102774,-500.0,0.00012328,2]
[396170979,1764771102796,-493.77040716,0.00012328,2]
[396170980,1764771102818,-277.08560079,0.00012328,2]
[396170981,1764771102841,-300.0,0.00012447,2]
[396170982,1764771102865,-300.0,0.00012447,2]
[396170983,1764771102887,-300.0,0.00012447,2]
[396170984,1764771102910,-300.0,0.00012447,2]
[396170985,1764771102935,-300.0,0.00012447,2]
[396170986,1764771102959,-300.0,0.00012447,2]
[396170987,1764771102982,-300.0,0.00012447,2]
[396170988,1764771103004,-300.0,0.00012447,2]
[396170989,1764771103026,-300.0,0.00012447,2]
[396170990,1764771103061,-300.0,0.00012447,2]
[396170991,1764771103085,-300.0,0.00012447,2]
[396170992,1764771103110,-300.0,0.00012447,2]
[396170993,1764771103132,-300.0,0.00012447,2]
[396170994,1764771103154,-300.0,0.00012447,2]
[396170995,1764771103176,-300.0,0.00012447,2]
[396170996,1764771106173,500.0,0.00012328,2]
[396170997,1764771107025,5000.0,0.000125,2]
[396170998,1764771118557,160.0,0.000328,120]
[396170999,1764771121501,160.0,0.000328,120]
[396171000,1764771133130,156.24318258,0.000328,120]
[396171001,1764771151611,-19802.7994245,0.00012228,2]
[396171002,1764771151633,-19802.7994245,0.00012352,2]
[396171003,1764771158765,999.0,0.00032876,120]
[396171005,1764771284330,1448.96,0.00032877,120]
[396171007,1764771397839,999.0,0.00032876,120]
[396171009,1764771443845,-600.0,0.00012573,2]
[396171010,1764771443867,-150.0,0.00012585,2]
[396171011,1764771443889,-300.0,0.00012596,2]
[396171012,1764771443914,-500.0,0.00012597,2]
[396171013,1764771443939,-500.0,0.00012597,2]
[396171014,1764771443962,-384.76651933,0.00012597,2]
[396171015,1764771443987,-474.39336644,0.00012597,2]
[396171016,1764771444010,-500.0,0.00012597,2]
[396171017,1764771444032,-500.0,0.00012597,2]
[396171018,1764771444055,-219.37704071,0.00012597,2]
[396171019,1764771444079,-300.0,0.00012598,2]
[396171020,1764771444102,-300.0,0.00012598,2]
[396171021,1764771444125,-300.0,0.00012598,2]
[396171022,1764771444149,-300.0,0.00012598,2]
[396171023,1764771444172,-300.0,0.00012598,2]
[396171024,1764771444196,-300.0,0.00012598,2]
[396171025,1764771444220,-300.0,0.00012598,2]
[396171026,1764771444242,-300.0,0.00012598,2]
[396171027,1764771444265,-300.0,0.00012598,2]
[396171028,1764771444287,-300.0,0.00012598,2]
[396171029,1764771444309,-300.0,0.00012598,2]
[396171030,1764771444332,-300.0,0.00012598,2]
[396171031,1764771444355,-300.0,0.00012598,2]
[396171032,1764771444379,-300.0,0.00012598,2]
[396171033,1764771444405,-300.0,0.00012598,2]
[396171034,1764771444433,-50000.0,0.00012598,2]
[396171036,1764771543063,250.0,0.0002,30]
[396171055,1764771568649,377.0,0.0002,30]
[396171081,1764771592961,1309.996462,0.00030137,120]
[396171083,1764771602075,250.0,0.0001,2]
[396171085,1764771607051,999.0,0.00032876,120]
[396171086,1764771639486,-1452.934756,0.00012468,2]
[396171087,1764771639509,-4901.3484213,0.00012735,2]
[396171088,1764771639533,-254.0,0.00012735,2]
[396171089,1764771639555,-4901.3484213,0.00012864,2]
[396171090,1764771670238,425.45723995,0.00032876,120]
[396171091,1764771746763,1218.77,0.00032877,120]
[396171092,1764771807604,-300.0,0.00013272,2]
[396171093,1764771807628,-150.0,0.00013272,2]
[396171094,1764771807649,-500.0,0.00013273,2]
[396171095,1764771807670,-500.0,0.00013273,2]
[396171096,1764771807691,-500.0,0.00013273,2]
[396171097,1764771807713,-500.0,0.00013273,2]
[396171098,1764771807733,-501.19533995,0.00013273,2]
[396171099,1764771807755,-393.58887684,0.00013273,2]
[396171100,1764771807776,-500.0,0.00013273,2]
[396171101,1764771807798,-500.0,0.00013273,2]
[396171102,1764771807821,-561.50755485,0.00013273,2]
[396171103,1764771807842,-257.40377848,0.00013273,2]
[396171104,1764771807864,-501.62413995,0.00013273,2]
[396171105,1764771807888,-501.06196154,0.00013273,2]
[396171106,1764771807911,-500.0,0.00013273,2]
[396171107,1764771807933,-500.0,0.00013273,2]
[396171108,1764771807954,-279.54472512,0.00013273,2]
[396171109,1764771807974,-500.0,0.00013273,2]
[396171110,1764771807997,-500.0,0.00013273,2]
[396171111,1764771808018,-500.0,0.00013273,2]
[396171112,1764771808040,-500.0,0.00013273,2]
[396171113,1764771808061,-500.0,0.00013273,2]
[396171114,1764771808082,-212.31433157,0.00013526,2]
[396171115,1764771808105,-300.0,0.00013537,2]
[396171116,1764771808129,-300.0,0.00013537,2]
[396171117,1764771808151,-300.0,0.00013537,2]
[396171118,1764771808175,-300.0,0.00013537,2]
[396171119,1764771808197,-300.0,0.00013537,2]
[396171120,1764771808220,-300.0,0.00013537,2]
[396171121,1764771808243,-300.0,0.00013537,2]
[396171122,1764771808266,-300.0,0.00013537,2]
[396171123,1764771808289,-300.0,0.00013537,2]
[396171124,1764771808312,-300.0,0.00013537,2]
[396171125,1764771808335,-300.0,0.00013537,2]
[396171126,1764771808357,-300.0,0.00013537,2]
[396171127,1764771808379,-300.0,0.00013537,2]
[396171128,1764771808648,-300.0,0.00013537,2]
[396171129,1764771808672,-300.0,0.00013537,2]
[396171130,1764771808695,-600.0,0.00013537,2]
[396171131,1764771808717,-785.67917,0.00013699,2]
[396171132,1764771808740,-500.0,0.00013699,2]
[396171133,1764771808760,-500.53471818,0.00013699,2]
[396171134,1764771808782,-507.28573365,0.00013699,2]
[396171135,1764771808804,-500.0,0.00013699,2]
[396171136,1764771808827,-500.0,0.00013699,2]
[396171137,1764771808848,-501.76106843,0.00013699,2]
[396171138,1764771808870,-501.32001912,0.00013699,2]
[396171139,1764771808892,-500.0,0.00013699,2]
[396171140,1764771808914,-500.97038817,0.00013699,2]
[396171141,1764771808935,-500.0,0.00013699,2]
[396171142,1764771808956,-500.0,0.00013699,2]
[396171143,1764771808977,-500.0,0.00013699,2]
[396171144,1764771808998,-500.0,0.00013699,2]
[396171145,1764771809019,-341.29284674,0.00013699,2]
[396171146,1764771809039,-554.55060455,0.00013699,2]
[396171147,1764771809060,-500.0,0.00013699,2]
[396171148,1764771809080,-177.23376632,0.00013699,2]
[396171149,1764771809100,-500.0,0.00013699,2]
[396171150,1764771809123,-500.28892958,0.00013699,2]
[396171151,1764771809143,-500.0,0.00013699,2]
[396171152,1764771809163,-500.0,0.00013699,2]
[396171153,1764771809184,-501.42022835,0.00013699,2]
[396171154,1764771809205,-159.1978,0.00013699,2]
[396171167,1764771851269,2073.68,0.00032876,120]
[396171168,1764771883605,274.0,0.00021908,120]
[396171169,1764771884041,274.0,0.00021898,120]
[396171170,1764771884483,274.0,0.00021888,120]
[396171171,1764771884926,274.0,0.0002409,120]
[396171172,1764771885397,274.0,0.0002408,120]
[396171173,1764771885837,274.0,0.0002407,120]
[396171174,1764771886273,274.0,0.0002529,120]
[396171175,1764771886734,274.0,0.0002528,120]
[396171176,1764771887180,274.0,0.0002899,120]
[396171177,1764771887675,275.16,0.0002898,120]
[396171178,1764771896442,500.0,0.00021918,120]
[396171179,1764771896919,500.0,0.00024658,120]
[396171180,1764771897267,500.0,0.00027397,120]
[396171181,1764771897674,500.0,0.00030137,120]
[396171182,1764771898124,500.0,0.00032877,120]
[396171183,1764771909640,1000.0,0.00032876,120]
[396171184,1764771926488,500.0,0.00032876,120]
[396171185,1764771934476,640.0,0.00032876,120]
[396171188,1764772049511,199.99922563,0.000328,120]
[396171192,1764772056419,162.19707915,0.000328,120]
[396171193,1764772057551,181.9741005,0.000328,120]
[396171194,1764772059895,171.4774568,0.000328,120]
[396171195,1764772060367,458.32598191,0.000328,120]
[396171196,1764772066737,170.08982957,0.000328,120]
[396171197,1764772081044,305.09812352,0.000328,120]
[396171198,1764772082147,176.63174837,0.000328,120]
[396171199,1764772082184,581.40129212,0.000328,120]
[396171200,1764772082907,266.54861822,0.000328,120]
[396171201,1764772084498,443.77565274,0.000328,120]
[396171202,1764772087467,915.26788322,0.000328,120]
[396171203,1764772087500,174.49691957,0.000328,120]
[396171204,1764772087532,515.87663825,0.000328,120]
[396171205,1764772091782,904.20734424,0.000328,120]
[396171208,1764772097005,1010.417267,0.00029041,120]
[396171209,1764772097217,1987.28,0.00032876,120]
[396171210,1764772108939,192.53149985,0.00025,120]
[396171211,1764772110542,242.55434834,0.00032,120]
[396171212,1764772110725,366.75858837,0.0003,120]
[396171213,1764772110815,488.32136832,0.0003,120]
[396171214,1764772110865,327.28844742,0.0003015,120]
[396171215,1764772113555,13503.65784416,0.000298,120]
[396171216,1764772114221,786.08142644,0.0003,120]
[396171217,1764772115328,340.61393026,0.00025,120]
[396171218,1764772115487,297.53472739,0.00027397,120]
[396171220,1764772116120,521.63530824,0.00025,120]
[396171221,1764772116187,300.29015074,0.000295,120]
[396171222,1764772117352,1268.299998,0.00032,120]
[396171223,1764772117960,263.97186027,0.00032876,120]
[396171224,1764772118038,443.62939944,0.00026,120]
[396171225,1764772118146,435.81577568,0.00025,120]
[396171226,1764772118592,382.6363479,0.0003287,120]
[396171227,1764772120629,782.62683983,0.0003,120]
[396171228,1764772121553,2005.38818045,0.00032,120]
[396171229,1764772121621,260.86078832,0.0003,120]
[396171246,1764772225821,500.0,0.00021918,120]
[396171247,1764772226466,500.0,0.00024658,120]
[396171248,1764772226865,500.0,0.00027397,120]
[396171249,1764772227594,500.0,0.00030137,120]
[396171250,1764772228489,200.0,0.000287,120]
[396171251,1764772228536,500.0,0.00032877,120]
[396171252,1764772228803,200.0,0.000303,120]
[396171253,1764772229093,200.0,0.000319,120]
[396171287,1764772232228,243.0084,0.00029,120]
[396171288,1764772232838,5000.0,0.000141,10]
[396171289,1764772233623,-300.0,0.00013272,2]
[396171290,1764772233636,-259.0,0.00013272,2]
[396171291,1764772233651,-500.0,0.00013273,2]
[396171292,1764772233671,-500.0,0.00013273,2]
[396171293,1764772233684,-500.0,0.00013273,2]
[396171294,1764772233694,-500.0,0.00013273,2]
[396171295,1764772233704,-500.0,0.00013273,2]
[396171296,1764772233713,-500.0,0.00013273,2]
[396171297,1764772233723,-500.0,0.00013273,2]
[396171298,1764772233733,-524.71652456,0.00013273,2]
[396171299,1764772233743,-500.0,0.00013273,2]
[396171300,1764772233752,-500.0,0.00013273,2]
[396171302,1764772233762,-500.0,0.00013273,2]
[396171303,1764772233771,-500.0,0.00013273,2]
[396171304,1764772233781,-150.0,0.00013485,2]
[396171305,1764772233790,-247.40074239,0.00013699,2]
[396171306,1764772233802,-752.59925761,0.00013699,2]
[396171307,1764772233812,-500.0,0.00013699,2]
[396171308,1764772233822,-500.0,0.00013699,2]
[396171309,1764772233831,-500.0,0.00013699,2]
[396171310,1764772233843,-500.0,0.00013699,2]
[396171311,1764772233852,-500.0,0.00013699,2]
[396171312,1764772233862,-500.0,0.00013699,2]
[396171313,1764772233871,-500.0,0.00013699,2]
[396171314,1764772233882,-500.0,0.00013699,2]
[396171315,1764772233891,-1000.0,0.00013821,2]
[396171316,1764772233901,-1000.0,0.00013821,2]
[396171317,1764772233911,-1000.0,0.00013821,2]
[396171318,1764772233920,-1000.0,0.00013821,2]
[396171319,1764772233932,-1000.0,0.00013821,2]
[396171320,1764772233941,-296.76848795,0.00013821,2]
[396171321,1764772233951,-1000.0,0.00013821,2]
[396171322,1764772233962,-1000.0,0.00013821,2]
[396171323,1764772233972,-1000.0,0.00013821,2]
[396171324,1764772233981,-300.0,0.00014096,2]
[396171325,1764772233991,-300.0,0.00014096,2]
[396171326,1764772234004,-300.0,0.00014096,2]
[396171327,1764772234014,-300.0,0.00014096,2]
[396171328,1764772234023,-300.0,0.00014096,2]
[396171329,1764772234034,-300.0,0.00014096,2]
[396171330,1764772234044,-300.0,0.00014096,2]
[396171331,1764772234053,-300.0,0.00014096,2]
[396171332,1764772234063,-300.0,0.00014096,2]
[396171333,1764772234071,-300.0,0.00014096,2]
[396171334,1764772234081,-300.0,0.00014096,2]
[396171335,1764772234092,-300.0,0.00014096,2]
[396171336,1764772234102,-300.0,0.00014096,2]
[396171337,1764772234111,-300.0,0.00014096,2]
[396171338,1764772234122,-300.0,0.00014096,2]
[396171339,1764772234132,-600.0,0.00014096,2]
[396171340,1764772234141,-17923.69165008,0.0001421,2]
[396171341,1764772234153,-1070.34651481,0.0001421,2]
[396171342,1764772234164,-808.76125961,0.0001421,2]
[396171343,1764772234174,-500.0,0.0001421,2]
[396171344,1764772234183,-130.30772723,0.00014246,2]
[396171345,1764772235030,402.14222,0.000287,120]
[396171346,1764772235335,402.14222,0.000303,120]
[396171347,1764772236061,402.14222,0.000319,120]
[396171368,1764772238197,-627.89421575,0.00014247,2]
[396171369,1764772238209,-1000.0,0.00014247,2]
[396171370,1764772238224,-1000.0,0.00014247,2]
[396171371,1764772238236,-500.0,0.00014247,2]
[396171372,1764772238250,-500.0,0.00014247,2]
[396171373,1764772238263,-1000.0,0.00014247,2]
[396171374,1764772238276,-1000.0,0.00014247,2]
[396171375,1764772238288,-1000.0,0.00014247,2]
[396171376,1764772238300,-156.58043776,0.00014247,2]
[396171377,1764772238312,-1000.0,0.00014247,2]
[396171378,1764772238324,-158.0,0.00014329,3]
[396171379,1764772238336,-1500.0,0.00014368,2]
[396171380,1764772238352,-242.11798483,0.00014368,2]
[396171381,1764772238365,-1283.49138176,0.00014368,2]
[396171382,1764772238380,-216.50861824,0.00014368,2]
[396171383,1764772238392,-229.52913929,0.00014368,2]
[396171384,1764772238407,-455.70417096,0.00014368,2]
[396171385,1764772238422,-814.76668975,0.00014368,2]
[396171386,1764772238434,-76.02410973,0.00014368,2]
[396171387,1764772238448,-302.0,0.00014368,2]
[396171443,1764772239979,-1121.97589027,0.00014368,2]
[396171445,1764772239990,-777.78774246,0.00014368,2]
[396171447,1764772240003,-500.0,0.00014368,2]
[396171450,1764772240014,-383.18185333,0.00014368,2]
[396171452,1764772240027,-841.52588397,0.00014368,2]
[396171454,1764772240040,-254.01130894,0.00014368,2]
[396171457,1764772240054,-21.28095376,0.00014368,2]
[396171459,1764772240065,-1452.934756,0.0001448,2]
[396171461,1764772240076,-78.95978431,0.00014484,2]
[396171546,1764772243121,-421.04021569,0.00014484,2]
[396171547,1764772243132,-420.0,0.00014551,2]
[396171548,1764772243145,-500.0,0.00014758,2]
[396171549,1764772243157,-1500.0,0.00014795,2]
[396171550,1764772243169,-1500.0,0.00014795,2]
[396171551,1764772243181,-1323.01989928,0.00014795,2]
[396171552,1764772243192,-284.63730769,0.00014795,2]
[396171557,1764772246110,-500.0,0.00014245,2]
[396171558,1764772246120,-302.84844993,0.00014245,2]
[396171559,1764772246131,-214.70814199,0.00014245,2]
[396171560,1764772246141,-500.0,0.00014245,2]
[396171561,1764772246151,-500.0,0.00014245,2]
[396171562,1764772246160,-500.0,0.00014245,2]
[396171563,1764772246170,-500.0,0.00014245,2]
[396171564,1764772246180,-888.07358513,0.00014795,2]
[396171565,1764772246192,-327.28910718,0.00014795,2]
[396171566,1764772246202,-202.7108928,0.00014795,2]
[396171581,1764772303241,550.0,0.000273,120]
[396171587,1764772344471,2052.07790769,0.00032876,120]
[396171588,1764772352606,1904.48,0.00032876,120]
[396171589,1764772412584,194.28116093,0.000328,120]
[396171590,1764772445288,10000.0,0.00032877,120]
[396171591,1764772466478,1000.0,0.00032877,120]
[396171592,1764772502656,250.0,0.0002,30]
[396171593,1764772525176,181.97410049,0.000328,120]
[396171598,1764772556239,500.0,0.00021918,120]
[396171599,1764772556714,500.0,0.00024658,120]
[396171600,1764772557144,500.0,0.00027397,120]
[396171601,1764772557876,500.0,0.00030137,120]
[396171602,1764772558386,500.0,0.00032877,120]
[396171603,1764772583051,1825.12,0.00032876,120]
[396171604,1764772592278,170.08982957,0.000328,120]
[396171605,1764772629983,174.49691957,0.000328,120]
[396171606,1764772630020,171.4774568,0.000328,120]
[396171607,1764772654176,412.7013106,0.000328,120]
[396171608,1764772654211,176.63174837,0.000328,120]
[396171609,1764772654246,355.02052219,0.000328,120]
[396171611,1764772657222,213.23889458,0.000328,120]
[396171612,1764772657645,244.07849881,0.000328,120]
[396171668,1764772826068,1000.0,0.00032877,120]
[396171669,1764772832667,1749.08,0.00032876,120]
[396171670,1764772860960,1000.0,0.00032877,120]
[396171671,1764772867067,1000.0,0.00032877,120]
[396171672,1764772877604,500.0,0.00021918,120]
[396171673,1764772877686,1000.0,0.00032877,120]
[396171675,1764772878746,500.0,0.00024658,120]
[396171676,1764772879074,219.90606105,0.00029041,120]
[396171677,1764772879362,500.0,0.00027397,120]
[396171678,1764772879884,500.0,0.00030137,120]
[396171679,1764772880379,500.0,0.00032877,120]
[396171680,1764772885883,1000.0,0.00032877,120]
[396171682,1764772893550,1000.0,0.00032877,120]
[396171683,1764772901123,1000.0,0.00032877,120]
[396171684,1764772907699,1000.0,0.00032877,120]
[396171685,1764772929508,212.0,0.00032877,120]
[396171686,1764772982399,-471.27,0.0001,2]
[396171687,1764772982418,-232.0,0.0001,2]
[396171692,1764773036098,-150.0,0.00011772,2]
[396171693,1764773036123,-150.0,0.00011891,2]
[396171694,1764773036150,-300.0,0.00012327,2]
[396171695,1764773036174,-300.0,0.00012328,2]
[396171696,1764773036200,-300.0,0.00012328,2]
[396171697,1764773036228,-300.0,0.00012328,2]
[396171698,1764773036252,-571.0,0.00012328,2]
[396171699,1764773036276,-1200.0,0.00012328,2]
[396171700,1764773036303,-924.05,0.00012329,2]
[396171701,1764773036329,-770.05,0.00012329,2]
[396171702,1764773036353,-641.7,0.00012329,2]
[396171703,1764773036376,-534.75,0.00012329,2]
[396171704,1764773036397,-445.63,0.00012329,2]
[396171705,1764773036418,-371.36,0.00012329,2]
[396171706,1764773036440,-309.46,0.00012329,2]
[396171707,1764773036461,-257.89,0.00012329,2]
[396171708,1764773036482,-214.91,0.00012329,2]
[396171709,1764773036504,-179.09,0.00012329,2]
[396171710,1764773036526,-895.46,0.00012329,2]
[396171711,1764773036554,-300.0,0.00012574,2]
[396171712,1764773036577,-300.0,0.00012574,2]
[396171713,1764773036601,-300.0,0.00012574,2]
[396171714,1764773036624,-300.0,0.00012574,2]
[396171715,1764773036648,-300.0,0.00012574,2]
[396171716,1764773036672,-300.0,0.00012574,2]
[396171717,1764773036694,-300.0,0.00012574,2]
[396171718,1764773036716,-300.0,0.00012574,2]
[396171719,1764773036739,-300.0,0.00012574,2]
[396171720,1764773036761,-300.0,0.00012574,2]
[396171721,1764773036789,-300.0,0.00012574,2]
[396171722,1764773036813,-300.0,0.00012574,2]
[396171723,1764773036835,-300.0,0.00012574,2]
[396171724,1764773036858,-300.0,0.00012574,2]
[396171725,1764773036881,-300.0,0.00012574,2]
[396171726,1764773036903,-250.0,0.00012763,2]
[396171727,1764773036925,-600.0,0.00012824,2]
[396171728,1764773036949,-173.91901986,0.00012899,2]
[396171729,1764773036973,-335.28406577,0.00012899,2]
[396171730,1764773036996,-500.0,0.00012899,2]
[396171731,1764773037019,-500.0,0.00012899,2]
[396171732,1764773037043,-395.08246641,0.00012899,2]
[396171733,1764773037066,-828.11075492,0.000129,2]
[396171734,1764773037089,-500.0,0.00013273,2]
[396171735,1764773037111,-491.52563265,0.00013273,2]
[396171736,1764773037132,-500.0,0.00013273,2]
[396171737,1764773037154,-500.0,0.00013273,2]
[396171738,1764773037189,-500.0,0.00013273,2]
[396171739,1764773037213,-420.0,0.00013528,2]
[396171740,1764773037237,-500.0,0.00013699,2]
[396171741,1764773037261,-500.0,0.00013699,2]
[396171742,1764773037287,-500.0,0.00013699,2]
[396171743,1764773037309,-500.0,0.00013699,2]
[396171744,1764773037331,-500.0,0.00013699,2]
[396171745,1764773037353,-500.0,0.00013699,2]
[396171746,1764773037375,-485.09655895,0.00013699,2]
[396171747,1764773037398,-500.0,0.0001382,2]
[396171748,1764773037420,-1000.0,0.00013821,2]
[396171749,1764773037442,-1000.0,0.00013821,2]
[396171750,1764773037463,-1000.0,0.00013821,2]
[396171751,1764773037487,-1000.0,0.00013821,2]
[396171752,1764773037508,-177.0,0.00013891,2]
[396171753,1764773037529,-500.0,0.00013973,2]
[396171754,1764773038507,31779.51913205,0.00012329,2]
[396171755,1764773053937,5000.0,0.00014,2]
[396171756,1764773054313,500.0,0.00013699,2]
[396171757,1764773057085,500.0,0.00013699,2]
[396171758,1764773058457,500.0,0.00013699,2]
[396171759,1764773060021,1676.2,0.00032876,120]
[396171760,1764773062357,4153.87230927,0.00014,2]
[396171761,1764773077498,5000.0,0.00014,2]
[396171762,1764773100862,5000.0,0.00014,2]
[396171763,1764773107224,500.0,0.00013699,2]
[396171764,1764773125352,500.0,0.00013273,2]
[396171765,1764773125388,1000.0,0.00013821,2]
[396171766,1764773125661,500.0,0.00013273,2]
[396171767,1764773125719,1000.0,0.00013821,2]
[396171796,1764773178401,500.0,0.00013699,2]
[396171797,1764773180330,448.55906216,0.00013699,2]
[396171798,1764773180891,500.0,0.00013699,2]
[396171799,1764773196755,500.0,0.00021918,120]
[396171800,1764773197162,500.0,0.00024658,120]
[396171801,1764773197786,500.0,0.00027397,120]
[396171802,1764773198470,500.0,0.00030137,120]
[396171803,1764773199380,500.0,0.00032877,120]
[396171804,1764773224110,1000.0,0.00013821,2]
[396171805,1764773224182,500.0,0.00013273,2]
[396171806,1764773230812,500.0,0.00013273,2]
[396171807,1764773230844,1000.0,0.00013821,2]
[396171808,1764773244728,500.0,0.00013273,2]
[396171809,1764773244772,1000.0,0.00013821,2]
[396171814,1764773296879,500.0,0.00013699,2]
[396171815,1764773299051,500.0,0.00013699,2]
[396171816,1764773303082,1606.36,0.00032876,120]
[396171817,1764773336402,511.67,0.00032876,120]
[396171818,1764773367314,500.0,0.00013273,2]
[396171819,1764773367347,1000.0,0.00013821,2]
[396172074,1764773398061,263.6,0.00032877,120]
[396172075,1764773404731,500.0,0.00013273,2]
[396172076,1764773404784,1000.0,0.00013821,2]
[396172077,1764773416891,500.0,0.00013699,2]
[396172078,1764773418007,500.0,0.00013699,2]
[396172104,1764773431889,-300.0,0.00014246,2]
[396172106,1764773431899,-268.0,0.00014246,2]
[396172108,1764773431908,-150.0,0.00014246,2]
[396172109,1764773431918,-1000.0,0.00014247,2]
[396172110,1764773431927,-1000.0,0.00014247,2]
[396172111,1764773431937,-1000.0,0.00014247,2]
[396172112,1764773432125,-1000.0,0.00014247,2]
[396172113,1764773432207,-3208.80747289,0.00014368,3]
[396172114,1764773432217,-1500.0,0.00014368,2]
[396172115,1764773432227,-1500.0,0.00014368,2]
[396172116,1764773432236,-464.0579899,0.00014411,2]
[396172117,1764773432246,-31114.0410089,0.00014411,2]
[396172118,1764773432255,-300.0,0.0001453,2]
[396172119,1764773432265,-300.0,0.0001453,2]
[396172120,1764773432274,-300.0,0.0001453,2]
[396172121,1764773432283,-300.0,0.0001453,2]
[396172122,1764773432292,-300.0,0.0001453,2]
[396172123,1764773432301,-300.0,0.0001453,2]
[396172124,1764773432311,-300.0,0.0001453,2]
[396172125,1764773432320,-300.0,0.0001453,2]
[396172126,1764773432329,-300.0,0.0001453,2]
[396172127,1764773432339,-300.0,0.0001453,2]